[Event "44th Chess Olympiad Open 2022"]
[Site "Chennai"]
[Date "2022.08.03"]
[Round "6.6"]
[White "Bok, Benjamin"]
[Black "Paichadze, Luka"]
[Result "1/2-1/2"]
[WhiteElo "2616"]
[BlackElo "2561"]
[Annotator "TA"]
[PlyCount "122"]
[EventDate "2022.??.??"]
[TimeControl "60"]

{[%evp 15,122,18,37,34,53,50,58,24,29,20,26,9,34,28,40,31,51,47,59,50,47,34,48,
43,62,56,57,63,55,60,63,62,83,45,41,32,50,10,21,31,35,44,44,38,72,28,29,29,35,
24,24,26,33,13,20,19,33,0,28,25,41,15,17,13,22,24,26,25,20,0,58,0,0,0,0,0,0,0,
0,0,0,0,0,0,0,0,11,0,21,0,47,8,8,0,0,0,0,0,0,0,0,0,0,0,0,0,0,0,0]} 1. d4 {
[%emt 0:00:03]} Nf6 {[%emt 0:00:14]} 2. c4 {[%emt 0:00:06]} e6 {[%emt 0:00:04]}
3. Nf3 {[%emt 0:00:05]} b6 {[%emt 0:01:02]} 4. g3 {[%emt 0:00:16]} Bb7 {
[%emt 0:00:07]} 5. Bg2 {[%emt 0:00:05]} Bb4+ {[%emt 0:00:31]} 6. Bd2 {[%emt 0:
00:00]} Bxd2+ {[%emt 0:01:31]} 7. Qxd2 {[%emt 0:00:05]} O-O {[%emt 0:00:45]} 8.
Nc3 {[%emt 0:00:42]} d6 {[%emt 0:02:08]} 9. d5 {[%emt 0:05:53] E16: Queen's
Indian: 4 g3 Bb7 5 Bg2 Bb4+.} e5 {[%emt 0:01:35]} 10. O-O {[%emt 0:00:12]} a5 {
[%emt 0:00:34]} 11. Ne1 {[%emt 0:01:32] White is slightly better.} Na6 {
[%emt 0:01:35]} 12. Nc2 {[%emt 0:01:28]} Nc5 {[%emt 0:02:02]} 13. b3 {[%emt 0:
00:00][%cal Yb2b3,Yb3b4] [#]} Qe7 $146 {[%emt 0:08:09]} ({Predecessor:} 13...
h6 14. e4 Re8 15. Rab1 Bc8 16. a3 a4 17. b4 Nb3 18. Qd3 Bd7 19. Rfd1 Qb8 {
0-1 (67) Rodshtein,M (2684)-Jobava,B (2617) Batumi 2019}) 14. Rab1 {[%emt 0:03:
03]} Ne8 {[%emt 0:10:07]} 15. e4 {[%emt 0:00:34]} g6 {[%emt 0:07:16]} 16. a3 {
[%emt 0:28:41]} Ng7 {[%emt 0:05:00]} 17. b4 {[%emt 0:00:04]} Nd7 {[%emt 0:00:
42]} 18. Ne3 {[%emt 0:00:08]} f5 {[%emt 0:01:52]} 19. exf5 {[%emt 0:00:00]}
gxf5 {[%emt 0:00:14]} 20. f4 {[%emt 0:00:27]} exf4 {[%emt 0:02:25]} 21. gxf4 {
[%emt 0:02:58]} axb4 {[%emt 0:02:43]} 22. axb4 {[%emt 0:00:05]} Nf6 {[%emt 0:
01:35]} 23. Rbe1 {[%emt 0:06:24][%cal Ye3f5] Nxf5! is the strong threat.} Qf7 {
[%emt 0:02:40]} 24. Qd3 {[%emt 0:04:22]} Nfh5 {[%emt 0:06:25]} 25. Nb5 {
[%emt 0:04:28]} Rae8 {[%emt 0:07:59]} 26. Qd2 {[%emt 0:04:59]} (26. Ra1 $5 {
[%cal Ra1a7]}) 26... Re7 {[%emt 0:05:13]} 27. Nd4 {[%emt 0:00:13][%cal Yd4f5]}
Qf6 {[%emt 0:03:28]} 28. Nec2 {[%emt 0:01:09]} Rfe8 {[%emt 0:08:29]} 29. Rxe7 {
[%emt 0:02:18]} Rxe7 {[%emt 0:00:05]} 30. Re1 {[%emt 0:00:17] White is more
active.} (30. Ra1 $5 {[%cal Ra1a7]}) 30... Bc8 {[%emt 0:01:25]} 31. Rxe7 {
[%emt 0:02:43]} Qxe7 {[%emt 0:00:08]} 32. Ne2 {[%emt 0:02:25]} Bd7 {[%emt 0:02:
26]} 33. Qe3 {[%emt 0:00:11]} Qh4 {[%emt 0:01:27]} 34. Qf2 {[%emt 0:00:00]} (
34. b5 {with more complications.} Kf8 35. Bf3 Kf7 36. Qf2) 34... Qf6 {[%emt 0:
01:43]} 35. Qd4 {[%emt 0:03:13] Inhibits Qb2.} Qd8 {[%emt 0:00:24]} (35... Qg6
{keeps more tension.} 36. b5 Kf7 37. Qe3 Ne8) 36. Qe3 {[%emt 0:02:14]} Kf7 {
[%emt 0:02:59]} 37. b5 {[%emt 0:02:16]} Qh4 {[%emt 0:04:05]} 38. Qf2 {[%emt 0:
00:48]} (38. Qh3 $5 {[%cal Rh3h4]} Qg4 39. Ncd4 $14) 38... Qf6 {[%emt 0:00:05]}
39. Qd4 {[%emt 0:00:06]} Qg6 {[%emt 0:00:14]} 40. Qe3 {[%emt 0:00:00]} Nf6 {
[%emt 0:01:04]} 41. Qg3 {[%emt 0:11:51]} Qh6 {[%emt 0:00:53]} 42. h3 {[%emt 0:
09:27]} Ngh5 {[%emt 0:01:06]} (42... Ne4 $11 43. Qe3 (43. Bxe4 fxe4 44. Kh2 Qh5
$11) 43... Qh4) 43. Qe3 {[%emt 0:01:23]} ({Better is} 43. Qh4 $14) 43... Ne4
$11 {[%emt 0:02:53]} 44. Ncd4 {[%emt 0:01:20]} Nhf6 {[%emt 0:00:30]} 45. Ne6 {
[%emt 0:04:14]} Bxe6 {[%emt 0:09:25]} 46. dxe6+ {[%emt 0:00:03]} Ke7 {[%emt 0:
00:34]} 47. Nd4 {[%emt 0:00:24]} Qh5 {[%emt 0:00:43]} 48. Qe1 {[%emt 0:00:00]}
Ke8 {[%emt 0:06:14]} 49. Qa1 {[%emt 0:01:12] [#] Threatens to win with Nc6.}
Ke7 {[%emt 0:00:56]} 50. Qe1 {[%emt 0:00:40]} h6 {[%emt 0:01:55]} 51. Qe3 {
[%emt 0:00:38]} Ke8 {[%emt 0:05:06]} 52. Qe1 {[%emt 0:00:14]} Nc5 {[%emt 0:00:
00]} (52... Ke7 $11) 53. Qa1 {[%emt 0:00:46]} Kf8 $1 {[%emt 0:07:30] The
position is equal.} 54. Nc6 {[%emt 0:00:38]} Qh4 {[%emt 0:00:08]} 55. e7+ {
[%emt 0:00:13]} Kf7 {[%emt 0:00:02]} 56. Qa8 $36 {[%emt 0:00:34] Black is
under pressure.} Ne6 {[%emt 0:00:45]} 57. Bd5 {[%emt 0:00:38] [#] Intending
Bxe6+ and mate.} Qe1+ {[%emt 0:00:38]} 58. Kg2 {[%emt 0:00:19]} Qe2+ {[%emt 0:
00:24]} 59. Kg1 {[%emt 0:00:10]} Qe1+ {[%emt 0:01:51]} 60. Kg2 {[%emt 0:00:01]
Qf8+ would kill now.} Qd2+ {[%emt 0:00:21]} 61. Kg1 {[%emt 0:00:00] White
wants to mate with Qf8+. Dancing on a razor blade.} Qe1+ {[%emt 0:00:00]
Weighted Error Value: White=0.08 (flawless) /Black=0.08 (flawless)} 1/2-1/2

[Event "44th Chess Olympiad Open 2022"]
[Site "Chennai"]
[Date "2022.08.03"]
[Round "6.6"]
[White "Mchedlishvili, Mikheil"]
[Black "Van Foreest, Jorden"]
[Result "0-1"]
[WhiteElo "2593"]
[BlackElo "2678"]
[Annotator "TA"]
[PlyCount "84"]
[EventDate "2022.??.??"]
[TimeControl "60"]

{[%evp 9,84,-21,0,0,0,2,-5,0,0,0,14,20,64,39,77,72,66,57,66,46,77,39,59,26,24,
12,16,0,0,0,0,-19,-33,-29,0,-31,0,0,0,-45,0,-91,-75,-127,-112,-141,-127,-125,
-149,-426,-422,-420,-295,-504,-161,-179,-128,-595,-584,-2016,-1952,-1995,-1941,
-1668,-1566,-1647,-653,-1453,-1361,-1284,-1213,-1644,-1721,-29995,-29996,
-29998,-29999]} 1. Nf3 {[%emt 0:00:07]} d5 {[%emt 0:00:15]} 2. c4 {[%emt 0:00:
00]} d4 {[%emt 0:01:24]} 3. b4 {[%emt 0:00:50]} c5 {[%emt 0:00:13]} 4. b5 {
[%emt 0:01:08]} Nf6 {[%emt 0:02:23]} 5. g3 {[%emt 0:00:57]} Qc7 {[%emt 0:05:37]
} 6. Bg2 {[%emt 0:02:10] A09: Réti Opening: 1 Nf3 d5 2 c4.} e5 {[%emt 0:00:28]
} 7. d3 {[%emt 0:01:02]} Bd6 {[%emt 0:02:01]} 8. O-O {[%emt 0:00:46] The
position is equal.} O-O {[%emt 0:00:32]} 9. a4 {[%emt 0:01:19] [#]} Bf5 $146 {
[%emt 0:00:47]} ({Predecessor:} 9... a5 10. e3 dxe3 11. Bxe3 b6 12. Bg5 Nbd7
13. Nfd2 Bb7 14. Bxb7 Qxb7 15. Nc3 Rad8 {1-0 (42) Chigaev,M (2631)-Bluebaum,M 
(2644) Moscow 2019}) 10. e4 {[%emt 0:05:43]} dxe3 {[%emt 0:03:15]} 11. Bxe3 {
[%emt 0:02:26]} a5 {[%emt 0:03:36]} 12. Nc3 {[%emt 0:13:40]} Nbd7 {[%emt 0:00:
00]} 13. Nh4 {[%emt 0:06:11]} Bg4 {[%emt 0:02:27]} 14. Qc2 {[%emt 0:00:33]}
Rad8 {[%emt 0:04:55]} 15. h3 {[%emt 0:04:09]} Be6 {[%emt 0:03:18]} 16. Nf3 {
[%emt 0:01:09]} h6 {[%emt 0:01:29][%cal Yh7h6,Yh6h5]} 17. Nd2 {[%emt 0:05:41]}
Qc8 {[%emt 0:02:42]} 18. g4 {[%emt 0:08:48]} Rfe8 {[%emt 0:00:00]} 19. Rad1 {
[%emt 0:01:54][%cal Yb5b6]} Nf8 {[%emt 0:00:21]} 20. b6 {[%emt 0:04:03]} Ng6 {
[%emt 0:00:33]} 21. Nb5 {[%emt 0:00:41]} h5 {[%emt 0:00:00]} 22. Ne4 {[%emt 0:
02:13]} Nxe4 {[%emt 0:02:39]} (22... Be7 $5 {[%cal Rh5g4]}) 23. dxe4 {[%emt 0:
00:21]} Bb8 {[%emt 0:01:14]} 24. f3 {[%emt 0:03:55]} Rd4 {[%emt 0:00:27]} 25.
Nxd4 {[%emt 0:06:24]} (25. Bxd4 exd4 26. Qb3 (26. gxh5 Nf4 $17) 26... hxg4 27.
fxg4 (27. hxg4 Qd8 $17) 27... Ne5 $17) (25. gxh5 $11 {remains equal.} Nf4 26.
Bxf4 (26. Bxd4 exd4 27. Rd2 Nxh5 $17) 26... Rxc4 27. Qd2 exf4 28. Na7 Bxa7 29.
bxa7) 25... exd4 $17 {[%emt 0:01:25]} 26. Bd2 {[%emt 0:00:15]} (26. gxh5 $2 Nh4
27. Bg5 Nxg2 28. Qxg2 Bxh3 $19) ({White should try} 26. Bc1) 26... hxg4 {
[%emt 0:02:46]} (26... Ne5 $6 27. f4 $11) 27. hxg4 {[%emt 0:06:41]} Nf4 {
[%emt 0:05:50] Strongly threatening ...d3.} (27... Ne5 $6 28. f4 Bxc4 29. fxe5
$11) 28. Bxa5 {[%emt 0:00:25]} Qd8 {[%emt 0:00:11]} 29. Rfe1 $2 {[%emt 0:00:58]
} (29. Rf2 $17 {was worth a try.}) 29... Be5 $19 {[%emt 0:01:28]} 30. Bf1 {
[%emt 0:04:18]} g6 {[%emt 0:02:27]} 31. Bd2 $2 {[%emt 0:03:16]} (31. Qh2 d3 32.
Rc1) 31... Kg7 $2 {[%emt 0:00:09]} ({Worse is} 31... Qh4 32. Bxf4 Bxf4 33. a5
$15 (33. Qg2 Ra8 $15)) (31... d3 32. Bxd3 (32. Qc1 $2 Bd4+ 33. Be3 Qh4 $19)
32... Nxd3) 32. Bxf4 {[%emt 0:00:43]} Bxf4 {[%emt 0:00:11]} 33. e5 $2 {[%emt 0:
00:25] White does not recover from this.} (33. a5 $17 {is a better chance.})
33... Rh8 {[%emt 0:00:00] aiming for ...Qh4.} 34. Re4 {[%emt 0:00:58] [#]} Qh4
$1 {[%emt 0:04:17]} 35. Bg2 {[%emt 0:00:28]} Be3+ {[%emt 0:01:10]} 36. Rxe3 {
[%emt 0:00:39]} dxe3 {[%emt 0:00:05]} 37. Qe2 {[%emt 0:02:15]} Qh2+ {[%emt 0:
01:20]} ({Not} 37... Bxc4 38. Qxe3 Qh2+ 39. Kf2 Qh4+ 40. Kg1 $11) 38. Kf1 {
[%emt 0:00:06]} Qf4 {[%emt 0:01:21]} 39. Rc1 {[%emt 0:00:36]} Rd8 {[%emt 0:03:
40]} 40. Rc3 {[%emt 0:00:00]} Qg3 {[%emt 0:01:48][%cal Yd8d1] ( -> ...Rd1+!)}
41. Rc2 {[%emt 0:31:12] [#]} Bxc4 $1 {[%emt 0:30:21]} 42. Rxc4 {[%emt 0:01:53]
[#]} (42. Kg1 Bxe2) 42... Rd1+ $3 {[%emt 0:00:10] Weighted Error Value:
White=0.94/ Black=0.17 (very precise)} 0-1

[Event "44th Chess Olympiad Open 2022"]
[Site "Chennai"]
[Date "2022.08.03"]
[Round "6.6"]
[White "Gelashvili, Tamaz"]
[Black "Warmerdam, Max"]
[Result "1-0"]
[WhiteElo "2549"]
[BlackElo "2610"]
[Annotator "TA"]
[PlyCount "73"]
[EventDate "2022.??.??"]
[TimeControl "60"]

{[%evp 18,73,13,12,16,19,19,19,17,17,15,11,25,14,21,22,16,29,16,38,38,29,12,
-17,23,0,0,0,0,0,22,27,67,56,119,135,281,272,293,293,352,357,468,452,576,593,
580,571,587,570,565,551,633,637,664,655,605,605]} 1. Nf3 {[%emt 0:00:04]} Nf6 {
[%emt 0:00:07]} 2. e3 {[%emt 0:00:06]} g6 {[%emt 0:00:50]} 3. b4 {[%emt 0:00:
00]} Bg7 {[%emt 0:00:23]} 4. Bb2 {[%emt 0:00:05]} d6 {[%emt 0:01:48]} 5. c4 {
[%emt 0:00:13]} O-O {[%emt 0:00:42]} 6. d3 {[%emt 0:01:06]} a5 {[%emt 0:04:00]}
7. b5 {[%emt 0:00:24]} e5 {[%emt 0:00:44]} 8. Nc3 {[%emt 0:00:08]} Nbd7 {
[%emt 0:04:48]} 9. Be2 {[%emt 0:00:11]} Re8 {[%emt 0:02:43]} 10. O-O {[%emt 0:
00:00]} b6 {[%emt 0:08:06] A15: English Opening: 1...Nf6.} 11. Nd2 {[%emt 0:00:
00]} Bb7 {[%emt 0:08:47] [#]} 12. Bf3 $146 {[%emt 0:00:41]} ({Predecessor:} 12.
Ba3 d5 13. Nxd5 Nxd5 14. cxd5 Bxd5 15. Qc2 Nf8 16. Bb2 Ne6 17. a4 Rc8 18. Rfc1
{½-½ (33) Reede,A (1525)-Cabrera Trujillo,C (1479) LSS email 2020}) 12...
Bxf3 {[%emt 0:00:37] The position is equal.} 13. Qxf3 {[%emt 0:01:09]} Nc5 {
[%emt 0:00:44]} 14. e4 {[%emt 0:16:58]} Nfd7 {[%emt 0:04:39]} 15. Rad1 {
[%emt 0:06:47]} Rf8 {[%emt 0:14:15]} 16. Qe2 {[%emt 0:06:10]} Ne6 {[%emt 0:00:
00]} 17. Nd5 {[%emt 0:02:22]} Nf6 {[%emt 0:05:34]} 18. g3 {[%emt 0:07:11]} Nxd5
{[%emt 0:06:26]} 19. cxd5 {[%emt 0:00:57]} Nc5 {[%emt 0:00:04]} 20. f4 {
[%emt 0:01:45]} Qd7 {[%emt 0:01:55]} (20... Na4 $5 {[%cal Ra4b2]} 21. Ba1 exf4
$11) 21. Nc4 {[%emt 0:06:54][%cal Rf4e5]} exf4 {[%emt 0:13:59]} 22. Bxg7 {
[%emt 0:07:21]} Kxg7 {[%emt 0:00:03]} 23. d4 {[%emt 0:01:31]} Nb7 {[%emt 0:00:
00]} (23... Na4 $5 {[%cal Ra4c3]} 24. Qc2 Qxb5 $11) 24. Rxf4 {[%emt 0:01:46]}
Qxb5 {[%emt 0:00:30]} 25. Rdf1 {[%emt 0:00:51][%cal Yf4f7] Strongly
threatening Rxf7+! White is more active.} f6 {[%emt 0:01:56] [#]} ({Black
should play} 25... Kg8 $14) 26. Qc2 $1 $16 {[%emt 0:00:20]} Rf7 {[%emt 0:05:11]
Black cannot hold the game after this.} (26... Qd7 $16) 27. a4 $18 {[%emt 0:00:
00]} Qe8 {[%emt 0:02:39]} 28. e5 $1 {[%emt 0:01:39]} dxe5 {[%emt 0:01:04]} 29.
dxe5 {[%emt 0:01:26][%cal Yd4e5,Ye5e6]} f5 {[%emt 0:01:11]} 30. e6 {[%emt 0:00:
26] White is clearly winning.} Rf6 {[%emt 0:01:17]} 31. Ne5 {[%emt 0:01:40]}
Qe7 {[%emt 0:00:12]} 32. Nd7 {[%emt 0:02:33] [#] Inhibits Qc5+. Trapped Piece}
Nc5 {[%emt 0:00:02]} 33. Nxf6 {[%emt 0:00:17]} Qxf6 {[%emt 0:00:03]} 34. g4 {
[%emt 0:00:30][%cal Yg3g4,Yg4f5]} Rd8 {[%emt 0:01:27]} 35. gxf5 {[%emt 0:01:16]
aiming for Qg2.} g5 {[%emt 0:00:44]} 36. Qg2 {[%emt 0:02:47]} h5 {[%emt 0:02:
04] Inhibits Rg4.} 37. Rh4 {[%emt 0:00:00] Weighted Error Value: White=0.03 
(flawless) /Black=0.28 (precise)} 1-0

[Event "44th Chess Olympiad Open 2022"]
[Site "Chennai"]
[Date "2022.08.03"]
[Round "6.7"]
[White "Keymer, Vincent"]
[Black "Moroni, Luca Jr"]
[Result "1/2-1/2"]
[WhiteElo "2686"]
[BlackElo "2584"]
[Annotator "TA"]
[PlyCount "137"]
[EventDate "2022.??.??"]
[TimeControl "60"]

{[%evp 13,137,0,4,0,0,0,0,0,18,6,28,11,35,2,38,38,134,0,0,0,74,78,84,78,71,70,
84,75,74,74,72,81,76,69,77,83,64,40,58,20,28,0,2,0,35,0,0,0,0,0,0,0,0,0,0,0,81,
-12,0,0,0,4,4,0,17,22,34,0,0,0,29,0,7,0,0,0,0,0,0,-4,0,0,0,0,0,0,0,0,0,0,0,0,0,
0,0,0,0,0,0,0,0,-47,0,-93,-93,-93,-93,-93,-93,-93,-93,-93,-93,-93,-93,-93,-93,
-93,0,-93,-93,-93,-93,-93,0,-93]} 1. d4 {[%emt 0:00:03]} Nf6 {[%emt 0:00:05]}
2. c4 {[%emt 0:00:11]} e6 {[%emt 0:00:05]} 3. Nf3 {[%emt 0:00:04]} d5 {[%emt 0:
00:00]} 4. Nc3 {[%emt 0:00:04]} c6 {[%emt 0:00:04]} 5. e3 {[%emt 0:03:49]} Nbd7
{[%emt 0:00:05]} 6. Be2 {[%emt 0:00:19]} Bd6 {[%emt 0:00:25]} 7. O-O {[%emt 0:
00:00]} O-O {[%emt 0:00:10]} 8. a4 {[%emt 0:00:21] D45: Semi-Slav: 5 e3.} a5 {
[%emt 0:07:57]} 9. Qc2 {[%emt 0:02:49]} dxc4 {[%emt 0:10:06]} 10. Bxc4 {
[%emt 0:17:55]} Qe7 {[%emt 0:04:45]} 11. h3 {[%emt 0:03:15]} e5 {[%emt 0:03:43]
} 12. Ba2 {[%emt 0:01:14] [#]} Kh8 $146 {[%emt 0:11:42]} ({Predecessor:} 12...
Bb4 13. dxe5 Nxe5 14. Nd4 c5 15. Ndb5 Be6 16. Bxe6 fxe6 17. e4 Nh5 18. Ne2 g5 {
1-0 (44) Yu,Y (2709)-Carlsen,M (2863) chess24.com INT 2020}) 13. Bd2 {[%emt 0:
00:00]} h6 {[%emt 0:04:28]} 14. Nh4 {[%emt 0:04:52] Hoping for Nf5.} Nb6 {
[%emt 0:05:22] [#]} (14... Bb8 $14) 15. Rae1 {[%emt 0:21:01] White is more
active.} (15. Bxf7 $1 $16 {Ng6+ would kill now.} Qxf7 16. dxe5) 15... e4 $11 {
[%emt 0:13:16]} 16. Bb1 $1 {[%emt 0:00:17]} Re8 {[%emt 0:00:38]} (16... g6 $11)
17. f3 $1 $16 {[%emt 0:02:58][%cal Rf3e4]} Bg3 {[%emt 0:03:29] [#]} 18. fxe4 $1
{[%emt 0:00:24][%cal Ye4e5] e5! is the strong threat.} Bxh4 {[%emt 0:01:03]}
19. e5 {[%emt 0:00:14]} g6 {[%emt 0:00:25] Threatens to win with ...Nfd5.} 20.
exf6 {[%emt 0:02:18]} Bxf6 {[%emt 0:01:18]} 21. Qb3 {[%emt 0:03:34]} Ra6 {
[%emt 0:03:41]} 22. Bd3 {[%emt 0:00:40]} Be6 {[%emt 0:00:00]} 23. d5 {[%emt 0:
01:37]} Nxd5 {[%emt 0:00:20]} 24. Bxa6 {[%emt 0:00:06]} bxa6 {[%emt 0:02:00]}
25. Nxd5 {[%emt 0:04:05]} (25. Ne4 $5 {[%cal Rf1f6]} Be5 26. Qa3 $14 (26. Bxa5
Qh4 $15)) 25... Bxd5 {[%emt 0:00:31] A strong pair of Bishops.} 26. Qd3 {
[%emt 0:00:57]} (26. Qc2 $5 {[%cal Rf1f6]} Kg8 27. Bxa5 $14) 26... Bxb2 {
[%emt 0:04:01]} 27. Bc3+ {[%emt 0:05:55]} Bxc3 {[%emt 0:00:06]} 28. Qxc3+ {
[%emt 0:00:02]} Kg8 {[%emt 0:05:26]} 29. e4 {[%emt 0:04:00]} Bxe4 {[%emt 0:02:
41]} 30. Qc4 {[%emt 0:01:16] Strongly threatening Rf4.} Kg7 {[%emt 0:02:01]}
31. Qd4+ {[%emt 0:08:48]} Kg8 $1 {[%emt 0:00:11]} 32. Qc4 {[%emt 0:00:04] And
now Rf4 would win.} Kg7 {[%emt 0:00:04]} 33. Re2 {[%emt 0:00:00]} Qa7+ {
[%emt 0:04:39]} 34. Kh1 {[%emt 0:00:33] Chess con chili.} Qe7 {[%emt 0:00:27] 
[#]} (34... f5 $11) 35. Qxa6 {[%emt 0:02:49]} (35. Rfe1 $1 $16 {[%cal Re2e4]}
f5 {[#]} 36. Qxc6 $1) 35... Qc5 {[%emt 0:03:21]} 36. Qb7 {[%emt 0:00:38]} Re7 {
[%emt 0:00:55]} 37. Qb2+ {[%emt 0:00:09]} Qe5 {[%emt 0:00:00]} 38. Qd2 {
[%emt 0:02:45]} Qd5 {[%emt 0:01:19]} 39. Qc3+ {[%emt 0:01:10] White has
compensation.} Qe5 {[%emt 0:00:08]} 40. Qd2 {[%emt 0:00:00]} (40. Rc1 $5 {
[%cal Rc3e5]}) 40... Qd5 {[%emt 0:02:11]} 41. Qc3+ {[%emt 0:00:00]} Qe5 {
[%emt 0:01:36]} 42. Qb3 {[%emt 0:04:31]} (42. Rc1 $5 {[%cal Rc3e5]}) 42... Qe6
{[%emt 0:06:26]} 43. Qa3 {[%emt 0:01:29]} Qe5 {[%emt 0:03:52]} 44. Rd1 {
[%emt 0:03:36]} Rb7 {[%emt 0:03:12]} 45. Rde1 {[%emt 0:07:08]} Rb4 {[%emt 0:01:
22]} 46. Qc1 {[%emt 0:00:09]} Rxa4 {[%emt 0:03:17]} (46... Qe6 {with more
complications.} 47. Qc3+ Kh7 48. Rf2 Rxa4 49. Kg1 f5) 47. Qxc6 $1 {[%emt 0:00:
34]} Bxc6 {[%emt 0:00:50]} 48. Rxe5 $11 {[%emt 0:00:04] Endgame KRR-KRB} Rc4 {
[%emt 0:04:48]} 49. R1e2 {[%emt 0:02:16]} a4 {[%emt 0:00:00]} 50. Ra5 {[%emt 0:
00:02]} Rd4 {[%emt 0:03:37]} 51. Ra2 {[%emt 0:00:59]} h5 {[%emt 0:00:46]} 52.
Kh2 {[%emt 0:00:45]} h4 {[%emt 0:00:44]} 53. Ra7 {[%emt 0:00:00]} Bd7 {[%emt 0:
03:05]} 54. Re2 {[%emt 0:00:47]} Bc6 {[%emt 0:01:03]} 55. Rf2 {[%emt 0:01:16]}
Bd5 {[%emt 0:00:04]} 56. Rd7 {[%emt 0:00:23]} Kh6 {[%emt 0:01:27]} 57. Ra2 {
[%emt 0:01:00]} (57. Rfxf7 $11 Rd2 58. Rf3) 57... f5 {[%emt 0:01:13]} ({But not
} 57... Bxa2 58. Rxd4 g5 59. Rxa4 $14) (57... Kg5 $15) 58. Rxd5 {[%emt 0:00:12]
} Rxd5 $17 {[%emt 0:00:02]} 59. Rxa4 $11 {[%emt 0:00:00] KR-KR} Kg5 {[%emt 0:
00:19]} 60. Kg1 {[%emt 0:00:08]} Rd2 {[%emt 0:00:21]} 61. Kf1 {[%emt 0:00:06]}
Rb2 {[%emt 0:00:31]} 62. Rc4 {[%emt 0:00:06]} Kh5 {[%emt 0:00:35]} 63. Rf4 {
[%emt 0:00:47]} Rb5 {[%emt 0:00:31]} 64. Ra4 {[%emt 0:00:00]} Kg5 {[%emt 0:00:
44]} 65. Kf2 {[%emt 0:00:11]} Kh5 {[%emt 0:00:28]} (65... Rb2+ $17 66. Kf3 Rb5)
66. Ra8 {[%emt 0:00:37]} (66. Kf1 $1 $11) 66... Rb4 {[%emt 0:00:15]} 67. Ra5 {
[%emt 0:00:18]} Kg5 {[%emt 0:00:27]} 68. Ra6 {[%emt 0:00:03]} Rb5 {[%emt 0:00:
16]} (68... Rf4+ $17 69. Ke3 Rb4) 69. Rc6 {[%emt 0:00:09] Weighted Error Value:
White=0.17 (very precise) /Black=0.14 (very precise)} (69. Ra4 $1 $11) 1/2-1/2

[Event "44th Chess Olympiad Open 2022"]
[Site "Chennai"]
[Date "2022.08.03"]
[Round "6.7"]
[White "Nisipeanu, Liviu-Dieter"]
[Black "Sonis, Francesco"]
[Result "1-0"]
[WhiteElo "2642"]
[BlackElo "2543"]
[Annotator "TA"]
[PlyCount "95"]
[EventDate "2022.??.??"]
[TimeControl "60"]

{[%evp 17,95,8,2,0,0,0,0,0,0,0,0,-19,-10,-13,-1,0,0,0,-2,-21,-10,-24,-11,-34,
-20,-44,-33,-46,-56,-64,-45,-66,-35,-37,0,0,-2,-33,0,0,0,0,0,0,34,32,32,35,42,
36,40,41,44,14,21,0,0,0,0,-18,36,0,0,0,11,1,11,0,0,0,708,690,1299,1293,1253,
1247,1152,1144,1035,796]} 1. d4 {[%emt 0:00:03]} Nf6 {[%emt 0:00:09]} 2. c4 {
[%emt 0:00:05]} e6 {[%emt 0:00:05]} 3. Nc3 {[%emt 0:00:04]} Bb4 {[%emt 0:00:07]
} 4. e3 {[%emt 0:00:05]} O-O {[%emt 0:00:05]} 5. Bd3 {[%emt 0:00:03]} d5 {
[%emt 0:00:04]} 6. Nf3 {[%emt 0:00:08]} c5 {[%emt 0:00:05]} 7. O-O {[%emt 0:00:
00]} dxc4 {[%emt 0:00:04]} 8. Bxc4 {[%emt 0:00:06]} cxd4 {[%emt 0:00:04]} 9.
exd4 {[%emt 0:00:06]} b6 {[%emt 0:00:02]} 10. Qa4 {[%emt 0:01:26] E54:
Nimzo-Indian: Rubinstein: Main Line: 7...dxc4 8 Bxc4.} Be7 {[%emt 0:00:47]} 11.
Rd1 {[%emt 0:01:14]} Bb7 {[%emt 0:00:05] Against d5} 12. Ne5 {[%emt 0:00:17] 
[#] The position is equal.} Qe8 $146 {[%emt 0:00:09]} ({Predecessor:} 12... Nd5
13. Qb3 Nxc3 14. bxc3 Bd5 15. Bxd5 exd5 16. Bf4 Bf6 17. Rac1 Bxe5 18. dxe5 Nc6
19. Rxd5 {1-0 (38) Agdestein,S (2559)-Vestby Ellingsen,M (2351) Kongsvinger
2022}) 13. Bb5 {[%emt 0:11:28]} Qc8 {[%emt 0:00:06]} 14. Bf4 {[%emt 0:00:11]}
a6 {[%emt 0:00:24]} 15. Bf1 {[%emt 0:06:26]} b5 {[%emt 0:02:46]} 16. Qb3 {
[%emt 0:00:06]} Nc6 {[%emt 0:01:54]} 17. Rac1 {[%emt 0:03:37][%cal Yc3b5]} Qe8
{[%emt 0:15:20]} (17... Na5 $5 18. Qc2 Qd8 $11) 18. Ne2 {[%emt 0:13:36]} Rd8 {
[%emt 0:04:05]} 19. Qh3 {[%emt 0:10:06]} Nd5 {[%emt 0:09:05]} 20. Bd2 {[%emt 0:
00:00]} Bd6 {[%emt 0:05:48]} 21. Nxc6 {[%emt 0:09:51]} Bxc6 {[%emt 0:00:05]}
22. Nc3 {[%emt 0:00:05]} Nf4 {[%emt 0:10:51]} 23. Qh4 {[%emt 0:02:25]} Ng6 {
[%emt 0:00:31]} 24. Qh5 {[%emt 0:01:20]} Be7 {[%emt 0:01:43]} (24... b4 $5 {
[%cal Rb4c3]} 25. Ne2 Bd5 $15) 25. Be3 {[%emt 0:01:20]} f5 {[%emt 0:02:41] And
now ...f4 would win.} 26. d5 {[%emt 0:01:19]} exd5 {[%emt 0:00:14]} 27. Bb6 {
[%emt 0:03:43]} Rb8 {[%emt 0:02:26]} 28. Bd4 {[%emt 0:02:04]} Qd7 {[%emt 0:00:
00]} 29. g3 {[%emt 0:02:23]} b4 {[%emt 0:01:23]} 30. Ne2 {[%emt 0:02:55]} Bf6 {
[%emt 0:03:04]} 31. Bxf6 {[%emt 0:03:31]} Rxf6 {[%emt 0:00:06]} 32. Nd4 {
[%emt 0:00:02]} Bb7 {[%emt 0:01:07]} 33. Bh3 {[%emt 0:02:13][%cal Rh3f5] White
has compensation.} Ne7 {[%emt 0:01:00]} 34. Re1 {[%emt 0:01:16]} Rbf8 {[%emt 0:
02:26]} 35. Qe2 {[%emt 0:05:30]} Nc6 {[%emt 0:03:21]} 36. Qd3 {[%emt 0:05:31]}
Nxd4 {[%emt 0:03:19]} 37. Qxd4 {[%emt 0:00:04]} Qd6 {[%emt 0:00:00]} 38. Rc5 {
[%emt 0:01:07]} Kh8 {[%emt 0:05:29]} (38... f4 $11) 39. Rec1 {[%emt 0:02:59]}
Qb6 {[%emt 0:03:27]} 40. Qf4 {[%emt 0:00:54]} h6 {[%emt 0:00:00]} 41. Bg2 {
[%emt 0:04:13]} Rd8 {[%emt 0:10:38]} 42. Rc7 {[%emt 0:04:57][%cal Yc5c7,Yc7e7,
Ye7e6]} Bc6 {[%emt 0:00:58]} 43. Re1 {[%emt 0:04:09] [#] Threatens to win with
Ree7.} Rfd6 $2 {[%emt 0:13:28]} (43... Bb5 $11) 44. Ree7 $18 {[%emt 0:01:35]
Threatening mate with Qe5. White is clearly winning.} R6d7 {[%emt 0:05:32]} 45.
Qe5 {[%emt 0:00:41][%csl Ge7][%cal Re5g7]} Rxe7 {[%emt 0:00:15]} 46. Rxe7 {
[%emt 0:01:39][%csl Ge7][%cal Re5g7]} Rg8 {[%emt 0:00:20]} 47. Re6 {[%emt 0:00:
04][%cal Re6h6] [#]} Kh7 {[%emt 0:02:36]} 48. Bxd5 {[%emt 0:00:44] Weighted
Error Value: White=0.07 (flawless) /Black=0.10 (very precise)} 1-0